bitfinex-derivatives/quotes_ETHF0:USTF0_20250102
["timestamp","ask_amount","ask_price","bid_price","bid_amount"]
[1735795623969,0.29314,3417.6,3417.4,0.8926]
[1735795624171,1.2680766,3417.7,3417.4,0.8926]
[1735795624369,0.7037066,3417.7,3417.4,1.18575]
[1735795624575,0.7037066,3417.7,3417.4,0.8926]
[1735795624775,0.7037066,3417.7,3417.4,1.18575]
[1735795624976,0.7037066,3417.7,3417.5,0.4249]
[1735795626078,0.70338324,3417.7,3417.5,0.4249]
[1735795626673,0.29313,3417.7,3417.5,0.4249]
[1735795626878,0.00215909,3417.6,3417.5,0.4249]
[1735795627277,0.29529909,3417.6,3417.5,0.4249]
[1735795627680,0.00215909,3417.6,3417.5,0.4249]
[1735795627878,0.00215909,3417.6,3417.5,0.71805]
[1735795628574,0.29529909,3417.6,3417.5,0.4249]
[1735795629277,0.00215909,3417.6,3417.5,3.92585]
[1735795629477,3.2078,3418.2,3417.5,3.6327]
[1735795629681,3.2078,3418.2,3417.5,4.36556]
[1735795629982,3.2078,3418.2,3418.0,0.2931]
[1735795630182,3.2078,3418.2,3417.5,3.6327]
[1735795630183,3.50089,3418.2,3418.1,0.453]
[1735795630385,0.29313,3417.7,3417.6,0.8814]
[1735795630680,0.4575,3418.1,3417.6,1.3344]
[1735795630975,0.29312,3417.8,3417.6,1.3344]
[1735795631180,0.86793774,3418.1,3417.6,1.3344]
[1735795631375,0.29311,3418.0,3417.7,0.29313]
[1735795631576,0.41043774,3418.1,3417.6,1.3344]
[1735795631778,0.2931,3418.0,3417.7,0.29313]
[1735795631977,0.41043774,3418.1,3417.6,1.3344]
[1735795632173,0.29311,3417.9,3417.7,0.29313]
[1735795632475,3.2078,3417.8,3417.6,0.8792]
[1735795632671,2.70153073,3417.7,3417.1,3.2078]
[1735795632879,0.41045535,3417.7,3417.2,0.73707]
[1735795633083,3.2078,3417.8,3417.2,0.4439]
[1735795633277,0.29313,3417.7,3417.3,0.29316]
[1735795633577,0.70354004,3417.7,3417.4,0.29315]
[1735795633780,3.50093,3417.8,3417.5,0.29314]
[1735795633979,3.50093,3417.8,3417.6,0.4536]
[1735795634280,3.50093,3417.8,3417.6,0.9148]
[1735795634481,3.50093,3417.8,3417.7,0.4347]
[1735795634976,0.41054208,3418.1,3417.7,0.4347]
[1735795635182,0.29312,3417.8,3417.7,0.4347]
[1735795636379,0.41055424,3418.1,3417.7,0.4347]
[1735795636582,0.2931,3418.0,3417.7,0.4347]
[1735795636778,0.41055424,3418.1,3417.7,0.4347]
[1735795636978,0.29312,3417.8,3417.7,0.4347]
[1735795637879,0.29311,3418.0,3417.7,0.72783]
[1735795638080,0.29311,3418.0,3417.7,0.72782]
[1735795638384,0.29311,3418.0,3417.7,0.72783]
[1735795638682,0.41055424,3418.2,3417.7,0.4347]
[1735795639083,0.29311,3418.0,3417.7,0.72783]
[1735795639282,0.29312,3417.9,3417.7,0.4347]
[1735795639479,0.41055424,3418.2,3417.7,0.4347]
[1735795639685,0.29312,3417.8,3417.7,0.4347]
[1735795641081,0.41055424,3417.9,3417.7,0.4347]
[1735795641287,3.2078,3418.0,3417.7,0.4347]
[1735795641482,0.29312,3417.8,3417.7,0.4347]
[1735795642089,0.84196307,3417.9,3417.7,0.4347]
[1735795642477,0.70416703,3417.9,3417.7,0.4347]
[1735795642788,0.29312,3417.9,3417.7,0.4347]
[1735795642982,0.41101882,3417.9,3417.7,0.4347]
[1735795643283,0.70412882,3417.9,3417.7,0.4347]
[1735795643482,0.41101882,3417.9,3417.7,0.4347]
[1735795643684,0.70412882,3417.9,3417.7,0.4347]
[1735795645084,3.50087,3418.4,3418.0,0.2931]
[1735795645286,0.41099292,3418.3,3418.1,0.9115]
[1735795645480,0.41099292,3418.3,3418.2,0.428]
[1735795646086,0.70407292,3418.3,3418.2,0.428]
[1735795646286,0.41099292,3418.3,3418.2,0.428]
[1735795646587,0.29308,3418.3,3418.2,0.428]
[1735795646790,0.29307,3418.4,3418.2,0.428]
[1735795647183,0.29306,3418.6,3418.2,0.72108]
[1735795647377,0.29306,3418.6,3418.3,0.29308]
[1735795648391,0.29306,3418.6,3418.2,0.428]
[1735795648392,0.29306,3418.6,3418.2,0.72108]
[1735795648791,0.41099292,3418.7,3418.2,0.428]
[1735795648991,0.29308,3418.3,3418.2,0.428]
[1735795649889,0.70406292,3418.4,3418.2,0.428]
[1735795650090,0.29308,3418.3,3418.2,0.428]
[1735795650892,0.29307,3418.4,3418.2,0.428]
[1735795651196,0.29308,3418.3,3418.2,0.428]
[1735795652087,0.29307,3418.4,3418.2,0.428]
[1735795653002,0.29308,3418.3,3418.2,0.428]
[1735795653291,3.50088,3418.3,3418.2,0.428]
[1735795654488,3.50088,3418.3,3417.5,3.2078]
[1735795654489,3.2078,3418.3,3417.6,1.181]
[1735795654690,0.29311,3418.0,3417.6,2.80603]
[1735795655496,0.29311,3418.0,3417.7,0.29313]
[1735795655697,0.29311,3417.9,3417.6,2.80603]
[1735795655997,2.29107538,3418.2,3417.6,1.3319]
[1735795656196,0.29312,3417.9,3417.6,1.62504]
[1735795656399,0.29312,3417.8,3417.6,1.3319]
[1735795656895,0.29311,3417.9,3417.6,1.62504]
[1735795657096,0.29311,3418.0,3417.6,1.62503]
[1735795657497,0.29311,3417.9,3417.6,1.62503]
[1735795657692,0.29311,3418.0,3417.6,1.62503]
[1735795657892,0.29311,3418.0,3417.7,0.29313]
[1735795658101,0.29311,3418.0,3417.6,1.3319]
[1735795658495,3.2078,3418.3,3417.6,1.3319]
[1735795658699,0.29312,3417.9,3417.6,1.62503]
[1735795658901,0.29311,3418.0,3417.7,0.29313]
[1735795659198,0.2931,3418.1,3417.8,0.29312]
[1735795659599,3.2078,3418.3,3417.7,2.29107538]
[1735795659809,3.50088,3418.3,3418.1,0.29309]
[1735795660102,3.2078,3418.3,3418.2,1.3497]
[1735795660495,3.61853522,3418.3,3418.2,1.3497]
[1735795660799,3.91161522,3418.3,3418.2,1.3497]
[1735795663201,0.70381522,3418.3,3418.2,1.3497]
[1735795663400,0.29308,3418.3,3418.2,1.3497]
[1735795664594,3.50088,3418.3,3418.2,1.3497]
[1735795665100,3.91161522,3418.3,3418.2,1.3497]
[1735795665301,0.41073522,3418.3,3418.2,1.3497]
[1735795665502,0.29306,3418.5,3418.2,1.64279]
[1735795666402,8.02968987,3418.4,3418.2,1.64279]
[1735795666794,8.02968987,3418.4,3418.3,0.29308]
[1735795667702,3.2078,3418.7,3418.3,0.29308]
[1735795667703,8.02968987,3418.5,3418.4,0.29307]
[1735795668907,3.2078,3418.7,3418.6,0.29305]
[1735795669806,0.29305,3418.6,3418.3,1.181]
[1735795670105,0.29305,3418.6,3418.5,0.29306]
[1735795670407,3.2078,3418.7,3418.3,1.181]
[1735795670607,0.29307,3418.4,3418.3,1.181]
[1735795674817,0.41044714,3418.6,3418.3,1.181]
[1735795675001,8.02968987,3418.7,3418.6,0.29305]
[1735795675509,0.29302,3419.0,3418.4,46.29887538]
[1735795675700,0.29303,3418.9,3418.4,46.29887538]
[1735795675900,0.29303,3418.9,3418.8,0.29303]
[1735795676100,0.29302,3419.0,3418.9,0.29302]
[1735795677008,0.29301,3419.1,3418.9,0.29302]
[1735795677208,0.29301,3419.1,3419.0,0.4217]
[1735795678009,0.29301,3419.1,3419.0,0.8674]
[1735795679006,0.293,3419.2,3419.0,1.16041]
[1735795680001,8.02968987,3419.4,3419.0,0.8674]
[1735795680208,0.293,3419.2,3419.0,0.8674]
[1735795680712,0.70347493,3419.3,3419.0,1.16042]
[1735795681008,0.293,3419.3,3419.0,1.16042]
[1735795681813,0.293,3419.2,3419.0,0.8674]
[1735795682412,0.293,3419.3,3419.0,1.16042]
[1735795682605,0.29305,3418.7,3418.4,3.50087]
[1735795682809,5.49887538,3419.1,3418.3,0.73107]
[1735795682810,0.29303,3418.9,3418.3,0.73107]
[1735795683012,1.32727493,3419.0,3418.3,0.438]
[1735795683219,0.29304,3418.8,3418.5,0.29306]
[1735795683514,1.20982,3419.0,3418.7,0.29304]
[1735795683714,0.9168,3419.0,3418.8,0.4305]
[1735795683917,0.29303,3418.9,3418.8,0.4305]
[1735795684219,3.2078,3419.1,3418.9,0.29303]
[1735795684509,3.17377538,3419.4,3418.9,0.4337]
[1735795684718,0.29301,3419.2,3418.9,0.4337]
[1735795685011,0.8827,3419.4,3419.0,0.29301]
[1735795685213,8.02968987,3419.1,3419.0,0.29301]
[1735795685815,8.02968987,3419.1,3419.0,0.29302]
[1735795686420,8.02968987,3419.2,3419.0,0.29302]
[1735795686621,0.29302,3419.1,3418.9,0.4337]
[1735795687116,8.02968987,3419.2,3418.9,0.4337]
[1735795687314,0.29304,3418.8,3418.6,3.2078]
[1735795687506,0.29304,3418.8,3418.6,0.29305]
[1735795687918,0.29305,3418.7,3418.4,2.0731]
[1735795688113,0.4645,3419.0,3418.4,2.0731]
[1735795688322,0.29306,3418.6,3418.4,0.8921]
[1735795688715,0.87525922,3419.0,3418.4,0.8921]
[1735795689008,0.29306,3418.5,3418.4,0.4493]
[1735795690416,0.4305,3418.6,3418.4,0.4493]
[1735795690618,0.72356,3418.6,3418.4,0.4493]
[1735795691616,0.29306,3418.5,3418.4,0.4493]
[1735795691820,0.72416,3418.5,3418.4,0.4493]
[1735795693121,2.72217538,3418.5,3418.2,3.2078]
[1735795693319,0.29308,3418.3,3418.2,3.2078]
[1735795693920,0.29307,3418.4,3418.2,3.2078]
[1735795694726,2.72217538,3418.5,3418.2,3.2078]
[1735795694923,0.29307,3418.4,3418.2,3.2078]
[1735795695123,0.29308,3418.3,3418.2,3.2078]
[1735795696927,0.29309,3418.2,3418.1,0.893]
[1735795697118,2.58416538,3418.2,3418.1,0.4502]
[1735795697325,0.2931,3418.1,3417.8,0.71492]
[1735795697526,0.2931,3418.1,3417.9,0.4301]
[1735795698023,0.2931,3418.1,3418.0,0.442]
[1735795698419,2.9952756,3418.2,3418.0,0.442]
[1735795698621,0.2931,3418.1,3418.0,0.442]
[1735795708729,2.70194584,3418.2,3418.0,0.442]
[1735795708934,0.41087046,3418.2,3418.0,0.442]
[1735795709236,0.2931,3418.1,3418.0,0.442]
[1735795714340,3.2078,3418.3,3418.0,0.442]
[1735795714638,3.2078,3418.3,3418.1,0.29309]
[1735795715238,3.50088,3418.3,3418.1,0.29309]
[1735795715441,3.50088,3418.3,3418.0,0.7351]
[1735795715836,3.2078,3418.3,3418.0,0.7351]
[1735795716042,0.29309,3418.2,3418.0,0.7351]
[1735795716240,3.2078,3418.3,3418.0,0.442]
[1735795716445,0.29309,3418.2,3418.0,0.7351]
[1735795716741,3.2078,3418.3,3418.1,0.29309]
[1735795716938,3.2078,3418.3,3418.0,0.442]
[1735795716939,0.29309,3418.2,3418.0,0.7351]
[1735795717236,0.29309,3418.1,3418.0,0.7351]
[1735795717538,3.2078,3418.3,3418.0,0.7351]
[1735795717842,0.29309,3418.1,3418.0,0.7351]
[1735795718141,0.29309,3418.1,3418.0,0.442]
[1735795720539,0.29309,3418.1,3418.0,0.7351]
[1735795722339,0.29309,3418.1,3418.0,0.442]
[1735795722835,0.29309,3418.1,3418.0,0.7351]
[1735795723039,0.29309,3418.1,3418.0,0.442]
[1735795723541,0.29309,3418.1,3418.0,0.7351]
[1735795723943,0.29309,3418.1,3418.0,0.442]
[1735795724336,0.29309,3418.1,3418.0,0.7351]
[1735795725544,0.29309,3418.1,3418.0,0.442]
[1735795726740,0.29309,3418.1,3418.0,0.7351]
[1735795726942,0.29309,3418.1,3418.0,0.442]
[1735795727242,0.29309,3418.1,3418.0,0.7351]
[1735795728447,0.29309,3418.1,3418.0,0.442]
[1735795728642,0.29309,3418.1,3418.0,0.7351]
[1735795730446,0.4528,3418.5,3418.1,0.29309]
[1735795730447,0.29309,3418.2,3418.1,0.29309]
[1735795731844,0.41161016,3418.6,3418.0,0.442]
[1735795732052,0.29306,3418.6,3418.5,0.29306]
[1735795732237,3.2078,3418.7,3418.0,0.442]
[1735795732644,0.29308,3418.3,3418.2,0.29308]
[1735795733245,0.29306,3418.5,3418.4,0.29307]
[1735795734443,1.12587547,3418.6,3418.4,0.29307]
[1735795734742,1.12586547,3418.6,3418.5,0.4514]
[1735795737250,0.29308,3418.4,3418.2,0.29308]
[1735795737652,0.452,3418.3,3418.2,0.29308]
[1735795738149,0.452,3418.3,3418.1,0.4579]
[1735795738345,0.74508,3418.3,3418.1,0.75099]
[1735795738551,0.452,3418.3,3418.1,0.4579]
[1735795738845,0.29309,3418.2,3418.1,0.4579]
[1735795739445,0.452,3418.3,3418.1,0.75099]
[1735795739446,0.74508,3418.3,3418.1,0.75099]
[1735795739848,0.29309,3418.2,3418.1,0.75099]
[1735795744251,0.29309,3418.2,3418.1,1.18169]
[1735795747246,0.29308,3418.3,3418.2,0.29308]
[1735795747450,1.29341547,3418.6,3418.3,0.29307]
[1735795747451,0.29307,3418.4,3418.3,0.29307]
[1735795749954,1.32263844,3418.5,3418.3,0.29307]
[1735795750147,1.32263844,3418.5,3418.4,0.29307]
[1735795750855,1.32263844,3418.5,3418.1,0.8886]
[1735795751049,1.02956844,3418.5,3418.1,0.8886]
[1735795751254,1.32262844,3418.5,3418.4,0.29307]
[1735795751753,1.02956844,3418.5,3418.4,0.29307]
[1735795754253,1.02956844,3418.5,3418.1,0.8886]
[1735795754556,1.32262844,3418.5,3418.3,0.29307]
[1735795754756,1.32262844,3418.5,3418.1,0.8886]
[1735795755054,1.32262844,3418.5,3418.4,0.29307]
[1735795755254,0.29307,3418.4,3418.2,0.29308]
[1735795755645,0.29307,3418.4,3418.1,0.8886]
[1735795755959,1.73405391,3418.5,3418.3,0.29307]
[1735795757161,1.44098391,3418.5,3418.3,0.29307]
[1735795757459,0.29308,3418.3,3418.1,0.8886]
[1735795757651,0.29308,3418.3,3418.1,1.18169]
[1735795758158,0.72029,3418.2,3418.1,1.18169]
[1735795758359,0.4272,3418.2,3418.1,1.18169]
[1735795758856,1.44098391,3418.5,3418.2,0.29308]
[1735795758857,0.29308,3418.4,3418.2,0.29308]
[1735795759157,0.29308,3418.3,3418.2,0.29308]
[1735795759755,0.29308,3418.3,3418.1,0.8886]
[1735795760059,0.29308,3418.3,3418.2,0.29309]
[1735795763260,1.86818391,3418.5,3418.1,0.8886]
[1735795763461,1.13168547,3418.5,3418.4,0.29307]
[1735795763759,0.29307,3418.4,3418.3,0.29307]
[1735795764756,0.29307,3418.4,3418.2,0.29309]
[1735795765264,0.29307,3418.4,3418.3,0.29308]
[1735795766958,23.90309051,3418.7,3418.6,0.29305]
[1735795767964,23.90309051,3418.7,3418.6,0.74665]
[1735795768166,24.93265895,3418.7,3418.6,0.4536]
[1735795768366,25.22569895,3418.7,3418.6,0.4536]
[1735795768561,4.53040844,3418.7,3418.6,0.4536]
[1735795768866,3.2078,3418.7,3418.6,0.4536]
[1735795769056,3.2078,3418.7,3418.6,0.74665]
[1735795770564,0.29305,3418.6,3418.5,1.17026]
[1735795770765,0.29305,3418.6,3418.5,0.74276]
[1735795770766,0.73665,3418.6,3418.5,0.74276]
[1735795771075,0.73665,3418.6,3418.5,0.4497]
[1735795771268,8.80443613,3418.6,3418.5,0.4497]
[1735795772871,0.29306,3418.5,3418.4,1.47206]
[1735795774972,1.32262844,3418.5,3418.4,1.179]
[1735795775270,0.29307,3418.4,3418.3,0.4405]
[1735795775467,0.75347,3418.4,3418.3,0.4405]
[1735795775864,0.29309,3418.2,3418.1,3.50089]
[1735795776267,0.29309,3418.2,3418.1,0.29309]
[1735795776767,0.29308,3418.3,3418.2,0.29308]
[1735795781073,8.82126613,3418.4,3418.3,0.29308]
[1735795781277,0.29308,3418.3,3418.2,0.29308]
[1735795781477,8.82125613,3418.4,3418.3,0.29308]
[1735795781773,8.52818613,3418.4,3418.0,1.179]
[1735795781969,1.32266844,3418.1,3418.0,0.29309]
[1735795782169,1.02956844,3418.1,3418.0,0.29309]
[1735795782569,1.47166844,3418.1,3418.0,0.29309]
[1735795783170,0.4421,3418.1,3418.0,0.29309]
[1735795790976,1.02956844,3418.3,3418.2,0.29309]
[1735795791181,8.36085613,3418.4,3418.3,0.29308]
[1735795791986,0.29307,3418.4,3418.3,0.29308]
[1735795795183,9.53675457,3418.5,3417.9,1.3079]
[1735795795387,0.29307,3418.4,3418.3,0.29308]
[1735795796488,0.29307,3418.4,3418.3,0.29307]
[1735795797688,1.76202844,3418.5,3418.4,0.29307]
[1735795798284,0.4394,3418.5,3418.4,0.29307]
[1735795798588,19.5478685,3418.6,3418.0,1.02956844]
[1735795798786,0.29307,3418.4,3418.3,0.29308]
[1735795798987,1.32263844,3418.5,3418.3,0.29308]
[1735795799279,0.29308,3418.4,3418.2,0.29308]
[1735795799486,0.29308,3418.4,3418.3,0.29308]
[1735795799681,9.19263355,3418.4,3418.3,0.29308]
[1735795800576,9.48570355,3418.4,3418.3,0.29308]
[1735795800987,9.19263355,3418.4,3418.3,0.29308]
[1735795801190,9.48570355,3418.4,3418.3,0.29308]
[1735795802090,8.36478429,3418.4,3418.3,0.29308]
[1735795802984,8.07171429,3418.4,3418.3,0.29308]
[1735795804583,8.07171429,3418.4,3418.3,0.73338]
[1735795804990,10.64829495,3418.6,3418.3,0.4403]
[1735795805190,10.64829495,3418.6,3418.5,0.29306]
[1735795805490,10.35523495,3418.6,3418.4,0.9025]
[1735795805691,11.67786339,3418.6,3418.4,1.19556]
[1735795805893,11.67786339,3418.6,3418.5,0.29306]
[1735795806188,11.67786339,3418.6,3418.4,0.9025]
[1735795806189,11.38480339,3418.6,3418.4,0.4387]
[1735795806383,0.29306,3418.5,3418.4,0.4387]
[1735795807094,0.71676,3418.5,3418.4,0.4387]
[1735795807592,0.4237,3418.5,3417.9,0.4585]
[1735795807795,1.02956844,3418.0,3417.9,0.75161]
[1735795808996,1.47366844,3418.2,3418.1,0.29309]
[1735795809696,1.76675844,3418.2,3418.1,0.29309]
[1735795811390,1.02956844,3418.2,3418.1,0.29309]
[1735795811592,3.2078,3418.3,3418.2,0.29309]
[1735795811791,3.50088,3418.3,3418.2,0.75479]
[1735795812597,3.50088,3418.3,3418.2,0.4617]
[1735795813095,3.2078,3418.3,3418.2,0.75479]
[1735795814094,3.50088,3418.3,3418.2,0.75479]
[1735795815600,3.50088,3418.3,3418.2,0.4617]
[1735795815997,3.50088,3418.3,3418.2,0.75479]
[1735795817305,3.50088,3418.3,3418.2,0.4617]
[1735795817502,3.50088,3418.3,3418.2,0.75479]
[1735795818210,3.50088,3418.3,3418.2,0.4617]
[1735795818500,3.50088,3418.3,3418.2,0.75479]
[1735795820501,3.50088,3418.3,3418.2,0.4617]
[1735795820705,3.50088,3418.3,3418.2,0.75479]
[1735795822205,3.50088,3418.3,3418.2,0.4617]
[1735795822401,3.2078,3418.3,3417.9,0.4585]
[1735795822708,1.02956844,3418.0,3417.9,0.29311]
[1735795822899,1.02956844,3418.0,3417.7,1.3184]
[1735795823105,1.32266844,3418.0,3417.9,0.29311]
[1735795824701,1.02956844,3418.0,3417.7,1.3184]
[1735795824913,1.02956844,3417.8,3417.7,1.61153]
[1735795826402,8.35530975,3417.9,3417.8,0.29312]
[1735795826607,8.06218975,3417.9,3417.8,0.29312]
[1735795826809,8.35529975,3417.9,3417.8,0.29312]
[1735795827710,8.06218975,3417.9,3417.8,0.29312]
[1735795828206,8.35529975,3417.9,3417.8,0.29312]
[1735795829009,8.06218975,3417.9,3417.8,0.29312]
[1735795830109,9.38486819,3418.0,3417.9,0.29311]
[1735795831114,1.32267844,3418.0,3417.9,0.29311]
[1735795833907,0.29311,3418.0,3417.9,0.29311]
[1735795834204,1.32266844,3418.1,3418.0,0.29309]
[1735795839107,0.29311,3418.0,3417.9,0.29311]
[1735795839318,1.02956844,3418.1,3417.7,1.3184]
[1735795839615,1.02956844,3417.8,3417.7,1.61153]
[1735795843612,1.32268844,3417.8,3417.6,0.29313]
[1735795843808,1.02956844,3417.8,3417.4,0.8844]
[1735795844012,1.02956844,3417.8,3417.7,0.29313]
[1735795847914,1.02956844,3417.8,3417.4,0.8844]
[1735795848113,1.02956844,3417.5,3417.4,0.8844]
[1735795848317,1.02956844,3417.5,3416.8,4.612788]
[1735795848318,0.73289,3417.4,3416.8,4.612788]
[1735795848517,0.73289,3417.4,3416.8,7.820588]
[1735795848518,1.3424,3417.4,3416.8,7.820588]
[1735795848822,0.29317,3417.2,3417.1,0.29318]
[1735795849316,1.02956844,3417.3,3416.9,1.3399]
[1735795849523,1.32275844,3417.0,3416.9,1.3399]
[1735795849822,0.29321,3416.7,3416.6,1.47122]
[1735795850015,0.29321,3416.7,3416.6,2.34322]
[1735795850416,0.29321,3416.7,3416.6,1.16522]
[1735795850718,0.29321,3416.7,3416.6,0.872]
[1735795851019,0.29321,3416.7,3416.6,1.16522]
[1735795852723,0.29321,3416.7,3416.6,0.872]
[1735795853016,1.02956844,3416.8,3416.4,0.4296]
[1735795853321,1.02956844,3416.6,3416.2,0.29325]
[1735795853514,1.32281844,3416.4,3416.3,0.29325]
[1735795853816,1.02956844,3416.4,3416.1,2.4821]
[1735795854119,1.32280844,3416.4,3416.1,2.4821]
[1735795854421,1.32280844,3416.4,3416.3,0.29325]
[1735795854923,0.29325,3416.3,3416.2,0.29325]
[1735795855115,1.02956844,3416.4,3416.1,2.4821]
[1735795855524,1.32280844,3416.4,3416.3,0.29325]
[1735795856419,1.32280844,3416.4,3416.2,0.29325]
[1735795856621,0.29325,3416.3,3416.2,0.29325]
[1735795857121,0.4657,3416.3,3416.2,0.29325]
[1735795857717,0.4316,3416.7,3416.2,1.02956844]
[1735795857921,3.2078,3417.0,3416.6,1.02956844]
[1735795858119,11.2566489,3417.4,3417.3,0.29316]
[1735795858322,8.0488489,3417.4,3417.3,0.29316]
[1735795858622,8.0488489,3417.4,3417.3,41.09316]
[1735795858823,8.0488489,3417.4,3417.3,41.51646]
[1735795859220,0.2931,3418.0,3417.9,0.29311]
[1735795859520,1.02956844,3418.1,3417.9,0.29311]
[1735795859721,1.32266844,3418.1,3417.9,0.29311]
[1735795860222,0.2931,3418.1,3417.9,0.29311]
[1735795860818,0.8841,3418.3,3417.9,0.29311]
[1735795861118,0.2931,3418.1,3417.9,0.29311]
[1735795861317,2.281769,3418.2,3417.7,1.178]
[1735795861520,2.281769,3418.2,3417.7,1.47113]
[1735795861521,0.29312,3417.9,3417.7,1.47113]
[1735795861716,2.281769,3418.2,3417.7,1.178]
[1735795861717,0.29312,3417.8,3417.7,1.178]
[1735795861920,2.281769,3417.9,3417.2,3.50097]
[1735795862114,0.29316,3417.3,3417.2,1.178]
[1735795862622,0.29319,3417.0,3416.9,0.29319]
[1735795862820,0.4321,3417.5,3416.8,4.5029]
[1735795863127,0.29316,3417.4,3417.2,0.29317]
[1735795863320,0.29316,3417.4,3417.3,0.4267]
[1735795864425,3.2078,3417.6,3417.3,0.4267]
[1735795864723,0.29312,3417.8,3417.6,0.29314]
[1735795864924,3.2078,3418.0,3417.9,0.29311]
[1735795865218,0.4605,3418.2,3417.5,1.178]
[1735795865421,0.75359,3418.2,3417.5,1.178]
[1735795865623,0.75359,3418.2,3418.0,0.2931]
[1735795868030,3.6576,3418.4,3417.6,3.2078]
[1735795868328,3.6576,3418.4,3417.6,3.94065]
[1735795868524,3.95068,3418.4,3417.6,3.94065]
[1735795868922,3.6576,3418.4,3417.6,3.94065]
[1735795869123,0.29308,3418.3,3417.6,3.94065]
[1735795869328,0.29308,3418.3,3418.1,0.29309]
[1735795869535,3.95067,3418.4,3418.2,0.29308]
[1735795870227,3.95067,3418.4,3418.3,0.29308]
[1735795870422,3.95067,3418.4,3417.7,0.73283]
[1735795870622,3.95067,3418.4,3418.2,0.29308]
[1735795871633,3.6576,3418.4,3417.7,0.73283]
[1735795871829,3.95067,3418.4,3418.2,0.29308]
[1735795872029,2.733769,3418.7,3418.5,0.29306]
[1735795872030,0.29305,3418.7,3418.5,0.29306]
[1735795872230,0.29306,3418.5,3418.3,2.4915]
[1735795872929,0.29308,3418.3,3418.2,3.2078]
[1735795873333,0.29309,3418.2,3418.1,1.177]
[1735795875228,4.1073,3418.4,3418.1,1.177]
[1735795875538,4.1073,3418.4,3418.1,1.47009]
[1735795875539,0.29308,3418.3,3418.1,1.47009]
[1735795875840,0.29309,3418.2,3418.1,1.177]
[1735795876028,4.1073,3418.4,3418.1,1.177]
[1735795876229,0.29308,3418.3,3418.1,1.47009]
[1735795876433,4.40037,3418.4,3418.2,0.29309]
[1735795876734,3.50087,3418.4,3418.3,0.71968]
[1735795876936,3.2078,3418.4,3418.3,0.71968]
[1735795877127,0.29305,3418.7,3418.3,0.4266]
[1735795877327,3.6573,3418.8,3418.4,0.8647]
[1735795877537,3.6573,3418.8,3418.5,0.29305]
[1735795877538,0.29304,3418.7,3418.5,0.29305]
[1735795879252,0.29305,3418.6,3418.5,0.29305]
[1735795879749,0.29305,3418.6,3418.4,0.8647]
[1735795879950,3.2078,3418.8,3418.4,0.8647]
[1735795880151,11.50265696,3419.9,3418.5,2.281769]
[1735795880449,11.50265696,3419.9,3419.6,0.29297]
[1735795880650,0.29295,3419.8,3419.6,0.29297]
[1735795881349,0.4532,3420.0,3419.3,1.177]
[1735795881648,0.74614,3420.0,3419.8,0.29295]
[1735795882452,3.6611,3420.1,3419.9,0.29293]
[1735795882646,3.95403,3420.1,3419.4,0.29298]
[1735795882843,0.29293,3420.0,3419.3,4.3848]
[1735795883153,0.29295,3419.9,3419.6,0.29296]
[1735795883953,0.4533,3420.1,3419.3,4.3848]
[1735795884142,0.29297,3419.6,3419.4,0.29298]
[1735795884342,3.6611,3420.1,3419.3,4.3848]
[1735795884343,0.29298,3419.4,3419.3,4.3848]
[1735795884543,0.29298,3419.4,3419.3,3.2078]
[1735795884745,3.2078,3419.7,3419.1,2.0432]
[1735795884941,0.29298,3419.5,3419.3,0.29299]
[1735795885345,0.29298,3419.5,3419.1,2.0432]
[1735795885346,3.2078,3419.7,3419.1,2.0432]
[1735795885547,0.29299,3419.4,3419.2,0.293]
[1735795886158,3.2078,3419.7,3419.1,2.0432]
[1735795886354,2.281769,3419.6,3419.1,2.0432]
[1735795886652,0.29307,3418.5,3418.3,3.50087]
[1735795886957,2.281769,3418.9,3418.3,3.50087]
[1735795887251,0.29307,3418.4,3418.2,0.29308]
[1735795887452,0.29306,3418.5,3418.4,0.29307]
[1735795887956,0.29306,3418.5,3418.3,3.2078]
[1735795887957,1.3494,3419.1,3418.5,0.29305]
[1735795888156,0.29305,3418.7,3418.3,3.2078]
[1735795888348,0.29305,3418.7,3418.6,0.29305]
[1735795888956,0.8914,3419.1,3418.3,3.2078]
[1735795889155,0.29303,3418.9,3418.3,3.2078]
[1735795889353,3.2078,3419.3,3418.4,2.281769]
[1735795889558,3.2078,3419.3,3418.7,5.489569]
[1735795889754,3.2078,3419.3,3419.2,0.293]
[1735795890258,0.29297,3419.6,3419.4,0.29298]
[1735795891450,0.29297,3419.6,3419.3,0.29299]
[1735795891649,0.29296,3419.7,3419.2,0.7327]
[1735795891848,0.29298,3419.5,3419.2,0.7327]
[1735795892848,5.489569,3419.8,3419.2,0.7327]
[1735795893249,0.29298,3419.5,3419.2,0.4397]
[1735795893450,5.489569,3419.8,3419.2,0.4397]
[1735795893657,0.29299,3419.4,3419.2,0.7327]
[1735795894557,5.489569,3419.8,3419.0,4.3848]
[1735795894856,0.29304,3418.8,3418.6,3.50085]
[1735795895053,0.4464,3419.3,3418.6,3.2078]
[1735795895255,0.29303,3418.8,3418.6,3.50085]
[1735795895558,0.29305,3418.6,3418.4,1.3548]
[1735795895754,0.4464,3418.7,3418.4,1.3548]
[1735795895960,0.73945,3418.7,3418.5,0.29306]
[1735795896254,0.4464,3418.7,3418.4,1.3548]
[1735795896448,0.29304,3418.8,3418.6,0.29305]
[1735795896858,0.29302,3419.0,3418.7,3.2078]
[1735795897060,0.29298,3419.4,3418.9,0.29302]
[1735795897356,0.29303,3418.8,3418.7,3.2078]
[1735795897661,0.29303,3418.9,3418.7,3.50084]
[1735795897861,3.2078,3419.2,3418.7,3.2078]